fUSD/lending_fUSD_20260531
["ID","MTS","AMOUNT","RATE_DAILY","PERIOD"]
[423525956,1780191041000,-479.46083724,0.00012277,2]
[423525957,1780191041000,-204.59,0.0001229,2]
[423525952,1780191041000,-1252.0,0.00011825,2]
[423525960,1780191041000,-2000.0,0.00012329,2]
[423525964,1780191041000,-500.0,0.00012603,2]
[423525966,1780191041000,-500.0,0.00012877,2]
[423525963,1780191041000,-1600.0,0.00012557,2]
[423525965,1780191041000,-204.59,0.00012802,2]
[423525902,1780191041000,-300.0,0.00011098,2]
[423525946,1780191041000,-4003.14,0.00011507,2]
[423525947,1780191041000,-500.0,0.00011507,2]
[423525950,1780191041000,-1170.28506446,0.00011781,2]
[423525936,1780191041000,-317.90543569,0.0001123,2]
[423525938,1780191041000,-500.0,0.00011233,2]
[423525904,1780191041000,-300.0,0.00011098,2]
[423525903,1780191041000,-666.0,0.00011098,2]
[423525905,1780191041000,-66709.45526219,0.00011099,2]
[423525923,1780191041000,-49929.06495033,0.00011099,2]
[423525910,1780191041000,-66709.45526216,0.00011099,2]
[423525921,1780191041000,-49929.06495033,0.00011099,2]
[423525922,1780191041000,-49929.06495033,0.00011099,2]
[423525914,1780191041000,-66709.45526216,0.00011099,2]
[423525920,1780191041000,-49929.06495033,0.00011099,2]
[423525919,1780191041000,-49929.06495033,0.00011099,2]
[423525908,1780191041000,-66709.45526216,0.00011099,2]
[423525912,1780191041000,-66709.45526216,0.00011099,2]
[423525918,1780191041000,-66709.45526216,0.00011099,2]
[423525916,1780191041000,-66709.45526216,0.00011099,2]
[423525934,1780191041000,-200.0,0.0001123,2]
[423525917,1780191041000,-66709.45526216,0.00011099,2]
[423525931,1780191041000,-200.0,0.0001123,2]
[423525933,1780191041000,-200.0,0.0001123,2]
[423525932,1780191041000,-200.0,0.0001123,2]
[423525928,1780191041000,-200.0,0.0001123,2]
[423525930,1780191041000,-200.0,0.0001123,2]
[423525925,1780191041000,-49929.06495033,0.00011099,2]
[423525929,1780191041000,-200.0,0.0001123,2]
[423525927,1780191041000,-249.32,0.0001122,2]
[423525926,1780191041000,-500.0,0.00011219,2]
[423525924,1780191041000,-49929.06495033,0.00011099,2]
[423525935,1780191041000,-200.0,0.0001123,2]
[423526008,1780191042000,-500.0,0.00013698,2]
[423526006,1780191042000,-500.0,0.00013698,2]
[423526009,1780191042000,-500.0,0.00013698,2]
[423526011,1780191042000,-500.0,0.00013698,2]
[423526010,1780191042000,-500.0,0.00013698,2]
[423526014,1780191042000,-500.0,0.00013698,2]
[423525996,1780191042000,-500.0,0.00013698,2]
[423526003,1780191042000,-500.0,0.00013698,2]
[423525997,1780191042000,-500.0,0.00013698,2]
[423525994,1780191042000,-500.0,0.00013698,2]
[423525999,1780191042000,-319.09437583,0.00013698,2]
[423526007,1780191042000,-500.0,0.00013698,2]
[423526005,1780191042000,-500.0,0.00013698,2]
[423526015,1780191042000,-500.0,0.00013698,2]
[423526022,1780191042000,-500.0,0.00013698,2]
[423526013,1780191042000,-500.0,0.00013698,2]
[423526004,1780191042000,-500.0,0.00013698,2]
[423526017,1780191042000,-500.0,0.00013698,2]
[423526016,1780191042000,-500.0,0.00013698,2]
[423526028,1780191042000,-500.0,0.00013698,2]
[423526027,1780191042000,-560.40129446,0.00013698,2]
[423526020,1780191042000,-500.0,0.00013698,2]
[423526018,1780191042000,-500.0,0.00013698,2]
[423526019,1780191042000,-531.56457924,0.00013698,2]
[423526029,1780191042000,-500.0,0.00013698,2]
[423526021,1780191042000,-500.0,0.00013698,2]
[423526024,1780191042000,-500.0,0.00013698,2]
[423525995,1780191042000,-500.0,0.00013698,2]
[423526012,1780191042000,-500.0,0.00013698,2]
[423525998,1780191042000,-500.0,0.00013698,2]
[423525967,1780191042000,-736.84843217,0.00012915,2]
[423525992,1780191042000,-500.0,0.00013698,2]
[423526023,1780191042000,-192.07480164,0.00013698,2]
[423525974,1780191042000,-500.0,0.00013698,2]
[423525972,1780191042000,-151.0,0.00013695,2]
[423525975,1780191042000,-161.53446073,0.00013698,2]
[423525971,1780191042000,-500.0,0.00013425,2]
[423525969,1780191042000,-500.0,0.00013151,2]
[423525970,1780191042000,-204.59,0.00013314,2]
[423525968,1780191042000,-1892.0,0.00013012,2]
[423525973,1780191042000,-300.0,0.00013697,2]
[423525980,1780191042000,-1037.93,0.00013698,2]
[423525988,1780191042000,-500.0,0.00013698,2]
[423525989,1780191042000,-500.0,0.00013698,2]
[423525983,1780191042000,-500.0,0.00013698,2]
[423525993,1780191042000,-295.37631974,0.00013698,2]
[423525985,1780191042000,-500.0,0.00013698,2]
[423525978,1780191042000,-1037.93,0.00013698,2]
[423525979,1780191042000,-1037.93,0.00013698,2]
[423525987,1780191042000,-500.0,0.00013698,2]
[423525977,1780191042000,-1037.93,0.00013698,2]
[423525976,1780191042000,-1037.93,0.00013698,2]
[423525982,1780191042000,-500.0,0.00013698,2]
[423525986,1780191042000,-500.0,0.00013698,2]
[423525984,1780191042000,-500.0,0.00013698,2]
[423525991,1780191042000,-500.0,0.00013698,2]
[423525990,1780191042000,-500.0,0.00013698,2]
[423526000,1780191042000,-549.93789521,0.00013698,2]
[423526001,1780191042000,-500.0,0.00013698,2]
[423526002,1780191042000,-500.0,0.00013698,2]
[423525981,1780191042000,-1037.93,0.00013698,2]
[423526026,1780191042000,-500.0,0.00013698,2]
[423526034,1780191042000,-500.0,0.00013698,2]
[423526030,1780191042000,-500.0,0.00013698,2]
[423526056,1780191042000,-500.0,0.00013698,2]
[423526062,1780191042000,-503.21523285,0.00013698,2]
[423526067,1780191042000,-500.0,0.00013698,2]
[423526077,1780191042000,-1027.82,0.00013698,2]
[423526078,1780191042000,-1027.82,0.00013698,2]
[423526066,1780191042000,-500.0,0.00013698,2]
[423526068,1780191042000,-500.0,0.00013698,2]
[423526069,1780191042000,-500.0,0.00013698,2]
[423526073,1780191042000,-500.0,0.00013698,2]
[423526075,1780191042000,-500.0,0.00013698,2]
[423526072,1780191042000,-500.0,0.00013698,2]
[423526071,1780191042000,-500.0,0.00013698,2]
[423526070,1780191042000,-500.0,0.00013698,2]
[423526076,1780191042000,-500.0,0.00013698,2]
[423526074,1780191042000,-500.0,0.00013698,2]
[423526079,1780191042000,-1027.82,0.00013698,2]
[423526080,1780191042000,-1027.82,0.00013698,2]
[423526086,1780191042000,-1201.83,0.00013698,2]
[423526083,1780191042000,-500.0,0.00013698,2]
[423526084,1780191042000,-500.0,0.00013698,2]
[423526081,1780191042000,-1027.82,0.00013698,2]
[423526088,1780191042000,-1201.83,0.00013698,2]
[423526082,1780191042000,-1027.82,0.00013698,2]
[423526025,1780191042000,-500.0,0.00013698,2]
[423526085,1780191042000,-1201.83,0.00013698,2]
[423526087,1780191042000,-1201.83,0.00013698,2]
[423526090,1780191042000,-1201.83,0.00013698,2]
[423526092,1780191042000,-1201.83,0.00013698,2]
[423526091,1780191042000,-1201.83,0.00013698,2]
[423526063,1780191042000,-500.0,0.00013698,2]
[423526055,1780191042000,-445.8480473,0.00013698,2]
[423526089,1780191042000,-1201.83,0.00013698,2]
[423526061,1780191042000,-500.0,0.00013698,2]
[423526032,1780191042000,-500.0,0.00013698,2]
[423526033,1780191042000,-500.0,0.00013698,2]
[423526031,1780191042000,-500.0,0.00013698,2]
[423526039,1780191042000,-500.0,0.00013698,2]
[423526038,1780191042000,-500.0,0.00013698,2]
[423526036,1780191042000,-500.0,0.00013698,2]
[423526041,1780191042000,-500.0,0.00013698,2]
[423526040,1780191042000,-500.0,0.00013698,2]
[423526042,1780191042000,-500.0,0.00013698,2]
[423526037,1780191042000,-500.0,0.00013698,2]
[423526044,1780191042000,-500.0,0.00013698,2]
[423526046,1780191042000,-500.0,0.00013698,2]
[423526047,1780191042000,-803.28,0.00013698,2]
[423526035,1780191042000,-500.0,0.00013698,2]
[423526045,1780191042000,-500.0,0.00013698,2]
[423526059,1780191042000,-500.0,0.00013698,2]
[423526057,1780191042000,-500.0,0.00013698,2]
[423526043,1780191042000,-500.0,0.00013698,2]
[423526058,1780191042000,-500.0,0.00013698,2]
[423526064,1780191042000,-500.0,0.00013698,2]
[423526053,1780191042000,-500.0,0.00013698,2]
[423526065,1780191042000,-500.0,0.00013698,2]
[423526060,1780191042000,-500.0,0.00013698,2]
[423526051,1780191042000,-803.28,0.00013698,2]
[423526050,1780191042000,-803.28,0.00013698,2]
[423526052,1780191042000,-803.28,0.00013698,2]
[423526049,1780191042000,-803.28,0.00013698,2]
[423526048,1780191042000,-803.28,0.00013698,2]
[423526054,1780191042000,-500.0,0.00013698,2]
[423526130,1780191043000,-500.0,0.00013699,2]
[423526138,1780191043000,-500.0,0.00013699,2]
[423526127,1780191043000,-500.0,0.00013699,2]
[423526137,1780191043000,-500.0,0.00013699,2]
[423526125,1780191043000,-2500.0,0.00013699,2]
[423526121,1780191043000,-522.16,0.00013698,2]
[423526118,1780191043000,-522.16,0.00013698,2]
[423526120,1780191043000,-522.16,0.00013698,2]
[423526128,1780191043000,-500.0,0.00013699,2]
[423526126,1780191043000,-200.0,0.00013699,2]
[423526117,1780191043000,-522.16,0.00013698,2]
[423526145,1780191043000,-500.0,0.00013699,2]
[423526129,1780191043000,-500.0,0.00013699,2]
[423526131,1780191043000,-500.0,0.00013699,2]
[423526133,1780191043000,-500.0,0.00013699,2]
[423526134,1780191043000,-500.0,0.00013699,2]
[423526135,1780191043000,-500.0,0.00013699,2]
[423526136,1780191043000,-500.0,0.00013699,2]
[423526149,1780191043000,-500.0,0.00013699,2]
[423526143,1780191043000,-500.0,0.00013699,2]
[423526148,1780191043000,-500.0,0.00013699,2]
[423526141,1780191043000,-500.0,0.00013699,2]
[423526115,1780191043000,-522.16,0.00013698,2]
[423526132,1780191043000,-500.0,0.00013699,2]
[423526122,1780191043000,-500.0,0.00013698,2]
[423526105,1780191043000,-500.0,0.00013698,2]
[423526119,1780191043000,-522.16,0.00013698,2]
[423526139,1780191043000,-500.0,0.00013699,2]
[423526096,1780191043000,-809.51,0.00013698,2]
[423526094,1780191043000,-1201.83,0.00013698,2]
[423526093,1780191043000,-1201.83,0.00013698,2]
[423526097,1780191043000,-809.51,0.00013698,2]
[423526101,1780191043000,-809.51,0.00013698,2]
[423526098,1780191043000,-809.51,0.00013698,2]
[423526100,1780191043000,-809.51,0.00013698,2]
[423526095,1780191043000,-1201.83,0.00013698,2]
[423526102,1780191043000,-809.51,0.00013698,2]
[423526103,1780191043000,-500.0,0.00013698,2]
[423526109,1780191043000,-500.0,0.00013698,2]
[423526107,1780191043000,-500.0,0.00013698,2]
[423526108,1780191043000,-500.0,0.00013698,2]
[423526106,1780191043000,-500.0,0.00013698,2]
[423526110,1780191043000,-500.0,0.00013698,2]
[423526104,1780191043000,-500.0,0.00013698,2]
[423526111,1780191043000,-500.0,0.00013698,2]
[423526112,1780191043000,-500.0,0.00013698,2]
[423526114,1780191043000,-508.41266581,0.00013698,2]
[423526123,1780191043000,-159.03749176,0.00013698,2]
[423526124,1780191043000,-166.66,0.00013699,2]
[423526116,1780191043000,-522.16,0.00013698,2]
[423526113,1780191043000,-500.0,0.00013698,2]
[423526140,1780191043000,-500.0,0.00013699,2]
[423526150,1780191043000,-500.0,0.00013699,2]
[423526142,1780191043000,-500.0,0.00013699,2]
[423526183,1780191043000,-214.81732421,0.00014999,2]
[423526192,1780191043000,-1201.83,0.00014999,2]
[423526193,1780191043000,-1201.83,0.00014999,2]
[423526189,1780191043000,-500.0,0.00014999,2]
[423526195,1780191043000,-1201.83,0.00014999,2]
[423526191,1780191043000,-490.0,0.00014999,2]
[423526188,1780191043000,-500.0,0.00014999,2]
[423526190,1780191043000,-500.0,0.00014999,2]
[423526187,1780191043000,-185.587909,0.00014999,2]
[423526194,1780191043000,-1201.83,0.00014999,2]
[423526196,1780191043000,-1201.83,0.00014999,2]
[423526200,1780191043000,-1201.83,0.00014999,2]
[423526206,1780191043000,-500.0,0.00014999,2]
[423526197,1780191043000,-1201.83,0.00014999,2]
[423526202,1780191043000,-1201.85358358,0.00014999,2]
[423526207,1780191043000,-500.0,0.00014999,2]
[423526204,1780191043000,-500.0,0.00014999,2]
[423526199,1780191043000,-1201.83,0.00014999,2]
[423526198,1780191043000,-1201.83,0.00014999,2]
[423526208,1780191043000,-304.15973657,0.00014999,2]
[423526203,1780191043000,-500.0,0.00014999,2]
[423526201,1780191043000,-1201.83,0.00014999,2]
[423526146,1780191043000,-500.0,0.00013699,2]
[423526182,1780191043000,-500.0,0.00014999,2]
[423526184,1780191043000,-185.587909,0.00014999,2]
[423526205,1780191043000,-500.0,0.00014999,2]
[423526181,1780191043000,-500.0,0.00014999,2]
[423526180,1780191043000,-308.12090886,0.00014998,2]
[423526144,1780191043000,-500.0,0.00013699,2]
[423526147,1780191043000,-540.02990626,0.00013699,2]
[423526153,1780191043000,-1201.83,0.00013805,2]
[423526151,1780191043000,-882.0,0.00013735,2]
[423526157,1780191043000,-166.66,0.00013836,2]
[423526154,1780191043000,-1600.0,0.00013813,2]
[423526165,1780191043000,-250.0,0.00014,2]
[423526152,1780191043000,-500.0,0.00013805,2]
[423526162,1780191043000,-5047.24448074,0.0001399,2]
[423526156,1780191043000,-204.59,0.00013826,2]
[423526168,1780191043000,-166.66,0.0001411,2]
[423526209,1780191043000,-522.16,0.00014999,2]
[423526170,1780191043000,-166.66,0.00014247,2]
[423526179,1780191043000,-230.81040221,0.000149,2]
[423526177,1780191043000,-4000.0,0.000149,5]
[423526175,1780191043000,-500.0,0.00014899,2]
[423526186,1780191043000,-185.587909,0.00014999,2]
[423526185,1780191043000,-185.587909,0.00014999,2]
[423526178,1780191043000,-230.81040223,0.000149,2]
[423526174,1780191043000,-4000.0,0.000148,5]
[423526172,1780191043000,-166.66,0.00014384,2]
[423526159,1780191043000,-166.66,0.00013973,2]
[423526173,1780191043000,-500.0,0.00014493,2]
[423526176,1780191043000,-1201.83,0.00014899,2]
[423526260,1780191044000,-185.587909,0.00015,2]
[423526259,1780191044000,-1178.676767,0.00015,2]
[423526255,1780191044000,-1178.676767,0.00015,2]
[423526256,1780191044000,-1178.676767,0.00015,2]
[423526257,1780191044000,-1178.676767,0.00015,2]
[423526241,1780191044000,-151.0,0.00015,2]
[423526254,1780191044000,-1178.676767,0.00015,2]
[423526250,1780191044000,-151.0,0.00015,2]
[423526236,1780191044000,-151.0,0.00015,2]
[423526258,1780191044000,-1178.676767,0.00015,2]
[423526243,1780191044000,-151.0,0.00015,2]
[423526252,1780191044000,-1178.676767,0.00015,2]
[423526253,1780191044000,-1178.676767,0.00015,2]
[423526276,1780191044000,-763.30317,0.00015068,2]
[423526261,1780191044000,-185.587909,0.00015,2]
[423526264,1780191044000,-185.587909,0.00015,2]
[423526263,1780191044000,-185.587909,0.00015,2]
[423526274,1780191044000,-763.30317,0.00015068,2]
[423526249,1780191044000,-151.0,0.00015,2]
[423526280,1780191044000,-763.30317,0.00015068,2]
[423526278,1780191044000,-763.30317,0.00015068,2]
[423526277,1780191044000,-763.30317,0.00015068,2]
[423526265,1780191044000,-185.587909,0.00015,2]
[423526279,1780191044000,-763.30317,0.00015068,2]
[423526281,1780191044000,-763.30317,0.00015068,2]
[423526272,1780191044000,-1600.0,0.00015068,2]
[423526262,1780191044000,-185.587909,0.00015,2]
[423526245,1780191044000,-151.0,0.00015,2]
[423526213,1780191044000,-522.16,0.00014999,2]
[423526251,1780191044000,-244.256521,0.00015,2]
[423526210,1780191044000,-522.16,0.00014999,2]
[423526220,1780191044000,-2562313.99725262,0.00015,2]
[423526211,1780191044000,-522.16,0.00014999,2]
[423526212,1780191044000,-522.16,0.00014999,2]
[423526266,1780191044000,-185.587909,0.00015,2]
[423526214,1780191044000,-522.16,0.00014999,2]
[423526217,1780191044000,-522.16,0.00014999,2]
[423526216,1780191044000,-522.16,0.00014999,2]
[423526219,1780191044000,-522.16,0.00014999,2]
[423526218,1780191044000,-522.16,0.00014999,2]
[423526215,1780191044000,-522.16,0.00014999,2]
[423526221,1780191044000,-411.16,0.00015,2]
[423526223,1780191044000,-1102.874189,0.00015,2]
[423526248,1780191044000,-151.0,0.00015,2]
[423526222,1780191044000,-2079.20142691,0.00015,2]
[423526232,1780191044000,-8093.35660595,0.00015,2]
[423526226,1780191044000,-1102.874189,0.00015,2]
[423526230,1780191044000,-188.245692,0.00015,2]
[423526227,1780191044000,-700.67312814,0.00015,14]
[423526224,1780191044000,-1102.874189,0.00015,2]
[423526228,1780191044000,-151.0,0.00015,2]
[423526225,1780191044000,-1102.874189,0.00015,2]
[423526231,1780191044000,-151.0,0.00015,2]
[423526229,1780191044000,-151.0,0.00015,2]
[423526237,1780191044000,-151.0,0.00015,2]
[423526247,1780191044000,-151.0,0.00015,2]
[423526234,1780191044000,-151.0,0.00015,2]
[423526240,1780191044000,-172.874907,0.00015,2]
[423526233,1780191044000,-2811055.70100307,0.00015,2]
[423526268,1780191044000,-185.587909,0.00015,2]
[423526282,1780191044000,-763.30317,0.00015068,2]
[423526284,1780191044000,-300.0,0.00016,2]
[423526328,1780191044000,-1381.0,0.00016164,2]
[423526331,1780191044000,-1381.0,0.00016164,2]
[423526330,1780191044000,-1381.0,0.00016164,2]
[423526334,1780191044000,-500.0,0.00016246,2]
[423526336,1780191044000,-500.0,0.00016246,2]
[423526335,1780191044000,-500.0,0.00016246,2]
[423526344,1780191044000,-3733.095094,0.00016438,2]
[423526333,1780191044000,-1037.93,0.00016246,2]
[423526337,1780191044000,-803.28,0.00016246,2]
[423526339,1780191044000,-500.0,0.00016246,2]
[423526341,1780191044000,-809.51,0.00016246,2]
[423526338,1780191044000,-500.0,0.00016246,2]
[423526343,1780191044000,-877.27641831,0.00016438,2]
[423526340,1780191044000,-1027.82,0.00016246,2]
[423526342,1780191044000,-1296.7,0.00016438,2]
[423526347,1780191044000,-3733.095094,0.00016438,2]
[423526345,1780191044000,-3733.095094,0.00016438,2]
[423526348,1780191044000,-3733.095094,0.00016438,2]
[423526349,1780191044000,-3733.095094,0.00016438,2]
[423526353,1780191044000,-801.871756,0.00016438,2]
[423526351,1780191044000,-3733.095094,0.00016438,2]
[423526356,1780191044000,-801.871756,0.00016438,2]
[423526346,1780191044000,-3733.095094,0.00016438,2]
[423526350,1780191044000,-3733.095094,0.00016438,2]
[423526352,1780191044000,-801.871756,0.00016438,2]
[423526354,1780191044000,-801.871756,0.00016438,2]
[423526270,1780191044000,-1799.0,0.00015041,2]
[423526327,1780191044000,-1381.0,0.00016164,2]
[423526329,1780191044000,-1381.0,0.00016164,2]
[423526355,1780191044000,-801.871756,0.00016438,2]
[423526332,1780191044000,-1394.82970576,0.00016164,2]
[423526324,1780191044000,-1381.0,0.00016164,2]
[423526285,1780191044000,-778.60591016,0.00016,2]
[423526293,1780191044000,-500.0,0.00016164,2]
[423526287,1780191044000,-1000.0,0.00016051,2]
[423526289,1780191044000,-500.0,0.00016164,2]
[423526290,1780191044000,-500.0,0.00016164,2]
[423526294,1780191044000,-447.66627661,0.00016164,2]
[423526291,1780191044000,-500.0,0.00016164,2]
[423526286,1780191044000,-1000.0,0.00016051,2]
[423526288,1780191044000,-500.0,0.00016164,2]
[423526292,1780191044000,-500.0,0.00016164,2]
[423526296,1780191044000,-1381.0,0.00016164,2]
[423526309,1780191044000,-1381.0,0.00016164,2]
[423526295,1780191044000,-1381.0,0.00016164,2]
[423526283,1780191044000,-736.84843217,0.00015849,2]
[423526311,1780191044000,-1381.0,0.00016164,2]
[423526323,1780191044000,-1381.0,0.00016164,2]
[423526326,1780191044000,-1381.0,0.00016164,2]
[423526325,1780191044000,-1381.0,0.00016164,2]
[423526321,1780191044000,-1381.0,0.00016164,2]
[423526307,1780191044000,-1381.0,0.00016164,2]
[423526318,1780191044000,-1381.0,0.00016164,2]
[423526320,1780191044000,-1381.0,0.00016164,2]
[423526305,1780191044000,-1381.0,0.00016164,2]
[423526316,1780191044000,-1381.0,0.00016164,2]
[423526297,1780191044000,-1381.0,0.00016164,2]
[423526313,1780191044000,-1381.0,0.00016164,2]
[423526300,1780191044000,-1381.0,0.00016164,2]
[423526303,1780191044000,-1381.0,0.00016164,2]
[423526402,1780191045000,-151.0,0.00018743,2]
[423526399,1780191045000,-151.0,0.00018743,2]
[423526404,1780191045000,-151.0,0.00018743,2]
[423526396,1780191045000,-151.0,0.00018743,2]
[423526388,1780191045000,-151.0,0.00018743,2]
[423526394,1780191045000,-151.0,0.00018743,2]
[423526390,1780191045000,-151.0,0.00018743,2]
[423526393,1780191045000,-151.0,0.00018743,2]
[423526392,1780191045000,-151.0,0.00018743,2]
[423526384,1780191045000,-578.20924308,0.00018743,2]
[423526395,1780191045000,-151.0,0.00018743,2]
[423526398,1780191045000,-151.0,0.00018743,2]
[423526411,1780191045000,-2728.040606,0.00018986,2]
[423526397,1780191045000,-151.0,0.00018743,2]
[423526401,1780191045000,-151.0,0.00018743,2]
[423526400,1780191045000,-151.0,0.00018743,2]
[423526406,1780191045000,-2728.040606,0.00018986,2]
[423526405,1780191045000,-736.84843217,0.00018784,2]
[423526412,1780191045000,-2728.040606,0.00018986,2]
[423526408,1780191045000,-2728.040606,0.00018986,2]
[423526409,1780191045000,-2728.040606,0.00018986,2]
[423526415,1780191045000,-5238.99494008,0.00019,2]
[423526407,1780191045000,-2728.040606,0.00018986,2]
[423526413,1780191045000,-2728.040606,0.00018986,2]
[423526410,1780191045000,-2728.040606,0.00018986,2]
[423526391,1780191045000,-2080.17592889,0.00018743,2]
[423526403,1780191045000,-151.0,0.00018743,2]
[423526385,1780191045000,-151.0,0.00018743,2]
[423526369,1780191045000,-2500.80487757,0.00017753,2]
[423526389,1780191045000,-151.0,0.00018743,2]
[423526357,1780191045000,-801.871756,0.00016438,2]
[423526359,1780191045000,-801.871756,0.00016438,2]
[423526358,1780191045000,-801.871756,0.00016438,2]
[423526361,1780191045000,-801.871756,0.00016438,2]
[423526363,1780191045000,-801.871756,0.00016438,2]
[423526362,1780191045000,-801.871756,0.00016438,2]
[423526360,1780191045000,-801.871756,0.00016438,2]
[423526365,1780191045000,-13069.77314437,0.000165,2]
[423526368,1780191045000,-793.43309813,0.000177,2]
[423526364,1780191045000,-6618.30733777,0.000165,2]
[423526367,1780191045000,-897.55,0.00016767,2]
[423526366,1780191045000,-1000.0,0.000165,2]
[423526370,1780191045000,-774.51180051,0.00017753,2]
[423526380,1780191045000,-151.0,0.00018743,2]
[423526371,1780191045000,-1239.9526844,0.0001789,2]
[423526372,1780191045000,-411.16,0.000179,2]
[423526381,1780191045000,-174.61919141,0.00018743,2]
[423526414,1780191045000,-1788.8943108,0.00019,2]
[423526375,1780191045000,-1208.12473226,0.00018,2]
[423526374,1780191045000,-236.04068925,0.00018,2]
[423526376,1780191045000,-1802.86223533,0.000181,2]
[423526379,1780191045000,-1296.7,0.0001841,2]
[423526378,1780191045000,-150.0,0.00018268,3]
[423526377,1780191045000,-522.16,0.00018118,2]
[423526382,1780191045000,-151.0,0.00018743,2]
[423526387,1780191045000,-204.73485834,0.00018743,2]
[423526383,1780191045000,-151.0,0.00018743,2]
[423526386,1780191045000,-1428.38747117,0.00018743,2]
[423526416,1780191045000,-743.36612647,0.00019,2]
[423526373,1780191045000,-350.0,0.00018,2]
[423526418,1780191045000,-250.0,0.00019178,2]
[423526448,1780191045000,-1592.87721992,0.00020387,2]
[423526452,1780191045000,-1651.81367706,0.00020935,2]
[423526446,1780191045000,-1296.7,0.00020381,2]
[423526461,1780191045000,-520.0,0.00021,2]
[423526454,1780191045000,-404.0,0.00021,2]
[423526458,1780191045000,-199.0,0.00021,2]
[423526460,1780191045000,-153.0,0.00021,2]
[423526465,1780191045000,-522.16,0.00021123,2]
[423526459,1780191045000,-300.0,0.00021,2]
[423526462,1780191045000,-454.0,0.00021,2]
[423526453,1780191045000,-2405.55389863,0.00020935,2]
[423526455,1780191045000,-163.0,0.00021,2]
[423526463,1780191045000,-522.16,0.00021123,2]
[423526464,1780191045000,-522.16,0.00021123,2]
[423526457,1780191045000,-341.0,0.00021,2]
[423526466,1780191045000,-522.16,0.00021123,2]
[423526473,1780191045000,-2494.55939288,0.00021483,2]
[423526471,1780191045000,-209.40437684,0.00021483,2]
[423526467,1780191045000,-522.3634291,0.00021123,2]
[423526469,1780191045000,-897.55,0.00021205,2]
[423526472,1780191045000,-1712.93078311,0.00021483,2]
[423526474,1780191045000,-603.2226976,0.00021682,2]
[423526470,1780191045000,-599.60298507,0.00021482,2]
[423526476,1780191045000,-7760.89,0.00021759,2]
[423526468,1780191045000,-150.95663103,0.00021198,2]
[423526475,1780191045000,-736.84843217,0.00021719,2]
[423526419,1780191045000,-250.0,0.00019178,2]
[423526450,1780191045000,-411.16,0.000207,2]
[423526444,1780191045000,-454.0,0.0002,2]
[423526456,1780191045000,-710.0,0.00021,2]
[423526447,1780191045000,-194.72792766,0.00020387,2]
[423526443,1780191045000,-520.0,0.0002,2]
[423526420,1780191045000,-264.39777289,0.00019178,2]
[423526421,1780191045000,-268.512687,0.00019178,2]
[423526426,1780191045000,-1481.2378076,0.00019291,2]
[423526423,1780191045000,-268.512687,0.00019178,2]
[423526427,1780191045000,-2157.14243826,0.00019291,2]
[423526425,1780191045000,-181.08010149,0.00019291,2]
[423526422,1780191045000,-268.512687,0.00019178,2]
[423526424,1780191045000,-268.512687,0.00019178,2]
[423526430,1780191045000,-2236.95670847,0.00019839,2]
[423526431,1780191045000,-404.0,0.0002,2]
[423526429,1780191045000,-1536.04360648,0.00019839,2]
[423526432,1780191045000,-400.0,0.0002,2]